Cogmind - Beta 12 @@@ ROGUE MODE // 2023.05.24 @ 21:58:47 Player: maxwell Result: Destroyed by B-86 Titan with Matter Neutralizer Performance ------------- Evolutions (5) 2500 Regions Visited (26) 5200 Robots Destroyed (271) 1355 Value Destroyed (11607) 11607 Prototype IDs (64) 1280 Alien Tech Used (0) 0 Bonus (7947) 7947 TOTAL SCORE: 29889 Bonus ------- High Alert Combat Kills 1178 Follower Combat Kills 1892 Entered Garrisons 200 Used RIF Installer 1000 Network Hubs Disabled 800 Aligned with FarCom 300 Destroyed Z-Imprinter 1000 Triggered Deep Caves Wall 500 Exposed GOLEM Chamber 500 A7 Reached Mainframe 300 Met R17 at Cetus 500 Friendly Fire -223 Cogmind --------- Core Integrity 0/1000 Matter 287/300 Energy 100/100 System Corruption 21% Temperature Cool (9) Movement Core (100) Ox1 Location -4/Proximity Caves Parts ------- > --- POWER (2) -------- (None) > --- PROPULSION (4) --- (None) > --- UTILITY (9) ------ Experimental Signal Interpreter Experimental Targeting Computer GOLEM Unit > --- WEAPON (2) ------- CR-A16's Pointy Stick > --- INVENTORY (5) ---- Cold Fusion Reactor Advanced Sensor Array Hardened Light Armor Plating Centrium Medium Armor Plating Peak State ------------ > --- POWER ------------ Cold Fusion Reactor Micro Antimatter Reactor > --- PROPULSION ------- Zionite Composite Leg I Zionite Composite Leg I Assembled Alloy Leg Assembled Alloy Leg > --- UTILITY ---------- Assembled Nanovents Huge Storage Unit Zionite Biocell Assembled Biocell Array Experimental Signal Interpreter Surveybot 24 Chip Experimental Targeting Computer GOLEM Unit > --- WEAPON ----------- Assembled Focal Cannon Assembled Focal Cannon > --- INVENTORY -------- Cold Fusion Reactor Particle Reactor Zionite Composite Leg I Zionite Biocell Advanced Sensor Array Advanced Sensor Array Experimental Sensor Array Modified TNC Experimental Targeting Computer Improved Transmission Jammer Cloak of Protection Improved Medium Armor Plating Centrium Medium Armor Plating Centrium Medium Armor Plating Relay Coupler [NC] System Purifier GOLEM Unit Advanced Variable Charge Gun Compact HERF Cannon Phase Cannon Proton Missile Launcher Heavy Shock Bomb Launcher Advanced Remote Datajack CR-A16's Pointy Stick [Rating: 140] Favorites ----------- Power Cold Fusion Reactor Engine Improved Deuterium Engine Power Core Reinforced Fission Core Reactor Cold Fusion Reactor Propulsion Assembled Alloy Leg Treads Light Treads Leg Assembled Alloy Leg Wheel Armored Huge Wheel Utility Huge Storage Unit Device GOLEM Unit Storage Huge Storage Unit Processor Advanced Targeting Computer Hackware Hacking Suite Protection Light Armor Plating Weapon Assembled Focal Cannon Energy Gun Advanced Beam Rifle Energy Cannon Assembled Focal Cannon Ballistic Gun Autogun Launcher Heavy Rocket Launcher Special Weapon RU-N14's Throwing Claymores Impact Weapon Heavy Mace Piercing Weapon CR-A16's Pointy Stick Build | -11 -10 -10 -9 -9 -9 -8 -8 -7 -7 -7 -7 -7 -6 -6 -6 -6 -6 -6 -6 -5 -5 -5 -5 -5 -5 -4 ------- Run | Jun Mat Min Mat Min Exi Min Mat Fac Low Low Zio Dee Pro Fac Ext Cet Arc Hub Gar Fac Was Fac Upp Upp War Pro Slots Evolved 10 | . . . 2 . . . 2 2 . . . . . 2 . . . . . 2 . . . . . . Power 1 | . . . . . . . . . . . . . . 1 . . . . . . . . . . . . Propulsion 2 | . . . . . . . . . . . . . . . . . . . . 2 . . . . . . Utility 7 | . . . 2 . . . 2 2 . . . . . 1 . . . . . . . . . . . . Weapon . | . . . . . . . . . . . . . . . . . . . . . . . . . . . Parts Attached 285 | . 12 13 13 1 30 9 38 16 . 4 17 67 1 5 2 1 3 7 19 9 5 3 3 1 . 6 Power 21 | . 1 2 1 . 5 . 3 . . . 1 1 . . . . . 3 2 . 1 1 . . . . Engine 7 | . 1 2 1 . 1 . 1 . . . 1 . . . . . . . . . . . . . . . Core 4 | . . . . . 3 . 1 . . . . . . . . . . . . . . . . . . . Reactor 10 | . . . . . 1 . 1 . . . . 1 . . . . . 3 2 . 1 1 . . . . Propulsion 26 | . 3 4 1 . 8 1 2 . . . 1 1 . . . . . . . 2 2 . . 1 . . Treads 8 | . 3 1 . . 4 . . . . . . . . . . . . . . . . . . . . . Leg 6 | . . . . . 1 . . . . . . . . . . . . . . 2 2 . . 1 . . Wheel 12 | . . 3 1 . 3 1 2 . . . 1 1 . . . . . . . . . . . . . . Hover . | . . . . . . . . . . . . . . . . . . . . . . . . . . . Flight . | . . . . . . . . . . . . . . . . . . . . . . . . . . . Utility 148 | . 4 . 6 1 12 3 15 11 . 3 10 50 1 5 1 . 3 4 10 4 1 2 1 . . 1 Device 72 | . 1 . 1 . 6 1 8 2 . 2 4 30 1 4 1 . 1 1 3 3 1 . 1 . . 1 Storage 13 | . 2 . 1 . . . 1 . . . . 3 . . . . 1 2 . 1 . 2 . . . . Processor 14 | . 1 . 2 . 1 . 1 1 . 1 5 1 . 1 . . . . . . . . . . . . Hackware 11 | . . . . . 1 2 3 1 . . . . . . . . . . 4 . . . . . . . Protection 38 | . . . 2 1 4 . 2 7 . . 1 16 . . . . 1 1 3 . . . . . . . Artifact . | . . . . . . . . . . . . . . . . . . . . . . . . . . . Weapon 90 | . 4 7 5 . 5 5 18 5 . 1 5 15 . . 1 1 . . 7 3 1 . 2 . . 5 Energy Gun 20 | . 3 3 . . . . 1 2 . 1 1 7 . . . . . . 1 . . . . . . 1 Energy Cannon 13 | . . . . . . . 5 1 . . . 2 . . . 1 . . 1 1 . . 1 . . 1 Ballistic Gun 21 | . . 2 4 . 5 3 7 . . . . . . . . . . . . . . . . . . . Ballistic Cannon . | . . . . . . . . . . . . . . . . . . . . . . . . . . . Launcher 17 | . . 2 1 . . 2 5 2 . . . 1 . . . . . . 2 . . . 1 . . 1 Special Weapon 14 | . . . . . . . . . . . 3 4 . . 1 . . . 3 2 1 . . . . . Impact Weapon 2 | . 1 . . . . . . . . . 1 . . . . . . . . . . . . . . . Slashing Weapon . | . . . . . . . . . . . . . . . . . . . . . . . . . . . Piercing Weapon 3 | . . . . . . . . . . . . 1 . . . . . . . . . . . . . 2 Special Melee Weapon . | . . . . . . . . . . . . . . . . . . . . . . . . . . . Unidentified Prototypes 31 | . . . 1 . 8 . 1 2 . . 8 8 . . . . 1 . 1 1 . . . . . . Corrupted Parts 1 | . . . . . . . . . . . . . . . . . . . 1 . . . . . . . System Corruption 6 | . . . . . . . . . . . . . . . . . . . 6 . . . . . . . Parts Lost 63 | . 2 10 2 . 10 3 3 1 . 3 . 5 . . 1 . 1 3 4 . . 1 . 2 . 12 Power 5 | . 1 2 1 . . . . . . . . . . . . . . . . . . . . . . 1 Propulsion 14 | . 1 3 . . 2 1 . . . . . 1 . . . . . . . . . . . 2 . 4 Utility 31 | . . . 1 . 6 2 3 1 . 3 . 4 . . 1 . 1 1 3 . . 1 . . . 4 Weapon 13 | . . 5 . . 2 . . . . . . . . . . . . 2 1 . . . . . . 3 Highest Loss Streak 10 | . 2 3 1 . 10 2 1 1 . 3 . 4 . . 1 . 1 2 2 . . 1 . 1 . 10 To Critical Strikes 4 | . . . . . 3 . . . . . . . . . . . . . 1 . . . . . . . Average Slot Usage (%) 88 | . 95 90 95 100 86 90 88 91 92 87 87 80 100 86 85 86 86 91 93 94 94 94 93 89 94 83 Engine 2 | . 14 7 11 11 4 . . . . . 4 3 . . . . . . . . . . . . . . Core 1 | . . . . . 6 11 6 . . . . . . . . . . . . . . . . . . . Reactor 4 | . . . . . . . 1 7 7 7 2 3 7 6 6 6 6 11 13 11 11 11 11 11 11 9 Treads 3 | . 28 18 . . 12 . . . . . . . . . . . . . . . . . . . . . Leg 5 | . . . . . . . . . . . . 2 15 13 13 13 13 13 12 23 23 23 23 18 23 16 Wheel 6 | . . 9 22 22 9 21 11 7 7 7 7 5 . . . . . . . . . . . . . . Device 11 | . 3 14 8 . . 3 12 13 15 16 18 12 23 24 19 20 16 8 10 11 11 10 11 11 11 10 Storage 11 | . 14 14 11 11 11 11 9 7 7 7 7 11 15 13 13 13 14 13 13 9 11 12 17 17 17 16 Processor 16 | . 6 . 11 11 4 11 15 15 15 17 25 25 15 15 20 20 20 20 20 17 17 17 17 17 17 16 Hackware 1 | . . . . . . 8 11 3 . . . . . . . . . . 5 5 5 4 . . . . Protection 7 | . . . 8 22 15 1 1 20 23 13 5 4 7 . . . 1 10 4 . . . . . . . Energy Gun 3 | . 21 12 . . . . . 7 7 15 5 1 . . . . . . . . . . . . . . Energy Cannon 4 | . . . . . . . 9 5 . . . 2 15 13 7 13 13 12 10 9 5 10 7 5 5 7 Ballistic Gun 4 | . 5 6 21 11 18 15 7 . . . . . . . . . . . . . . . . . . . Launcher 1 | . . 5 . 11 3 6 . 1 7 . . 1 . . . . . . . . . . 3 5 5 1 Special Weapon 1 | . . . . . . . . . . . 9 4 . . 4 . . . . 1 5 . . . . . Naked Turns . | . . . . . . . . . . . . . . . . . . . . . . . . . . . Heaviest Build 166 | 12 67 50 102 102 113 111 113 134 134 131 139 152 137 166 158 154 160 166 150 146 146 139 134 126 126 142 Greatest Support 108 | 20 40 40 28 24 52 24 28 28 28 28 28 60 60 60 60 60 60 60 60 108 108 108 108 108 108 108 Greatest Overweight (x) 5 | . 1 1 4 4 4 4 4 4 4 4 4 5 2 2 2 2 2 2 2 1 1 1 1 2 1 4 Average Overweight (x) 2 | . . 1 3 4 3 4 3 3 4 4 3 3 2 2 2 2 2 2 2 1 1 1 1 1 1 1 Largest Inventory Capacity 25 | . 20 20 25 25 25 25 25 25 25 25 25 25 25 25 25 25 25 25 25 25 25 25 25 25 25 25 Average Capacity 24 | . 18 20 24 25 25 25 25 25 25 25 25 25 25 25 25 25 25 25 25 25 25 25 25 25 25 23 Most Carried 25 | . 18 19 25 25 25 25 25 25 25 25 25 25 25 25 25 25 25 25 25 25 25 25 25 25 25 25 Average Carried 22 | . 12 16 22 24 21 24 24 24 24 23 24 22 25 24 24 24 24 24 24 23 24 24 23 24 25 23 Final Capacity 25 | 8 20 20 25 25 25 25 25 25 25 25 25 25 25 25 25 25 25 25 25 25 25 25 25 25 25 5 Final Carried 25 | 6 18 15 25 25 25 24 25 25 25 23 25 25 25 25 25 25 24 25 25 25 24 25 23 25 25 4 Class Distribution -------------------- 42% | Mutant 21% | Scavenger-Mutant 19% | Golem 6% | Skirmisher 4% | Commander-Golem 3% | Scavenger-Skirmisher Dominant Class ---------------- Mutant | -10/Materials Mutant | -10/Mines Mutant | -9/Materials Mutant | -9/Mines Scavenger-Mutant | -9/Exiles Mutant | -8/Mines Scavenger-Mutant | -8/Materials Scavenger-Mutant | -7/Factory Scavenger-Mutant | -7/Lower Caves Scavenger-Mutant | -7/Lower Caves Skirmisher | -7/Zion Mutant | -7/Deep Caves Skirmisher | -6/Proximity Caves Golem | -6/Factory Commander-Golem | -6/Extension Commander-Golem | -6/Cetus Commander-Golem | -6/Archives Golem | -6/Hub_04(d) Golem | -6/Garrison Golem | -5/Factory Golem | -5/Waste Golem | -5/Factory Golem | -5/Upper Caves Golem | -5/Upper Caves Golem | -5/Warlord Golem | -4/Proximity Caves Resources | -11 -10 -10 -9 -9 -9 -8 -8 -7 -7 -7 -7 -7 -6 -6 -6 -6 -6 -6 -6 -5 -5 -5 -5 -5 -5 -4 ----------- Run | Jun Mat Min Mat Min Exi Min Mat Fac Low Low Zio Dee Pro Fac Ext Cet Arc Hub Gar Fac Was Fac Upp Upp War Pro Matter Collected 8046 | 200 213 481 563 55 1054 195 1020 194 107 63 60 2747 23 . 77 20 15 75 185 192 . 88 151 137 . 131 Remotely . | . . . . . . . . . . . . . . . . . . . . . . . . . . . Salvage Created 11127 | . 359 191 1096 34 554 296 1530 549 3 307 . 958 . 83 773 227 295 838 626 845 . 336 191 554 . 482 Parts 592 | . 26 10 68 6 47 21 87 23 2 16 . 32 . 8 37 11 10 40 43 38 . 9 21 20 . 17 Haulers Intercepted 3 | . . . 1 . . . 2 . . . . . . . . . . . . . . . . . . . Recyclers Shooed 5 | . . . 4 . . . . . . . . . . . 1 . . . . . . . . . . . Parts Field Recycled . | . . . . . . . . . . . . . . . . . . . . . . . . . . . Retrieved Matter . | . . . . . . . . . . . . . . . . . . . . . . . . . . . Parts Self-Destructed 25 | . . . . . . . . . . 15 . . . . . . . . . . . . 3 5 . 2 Prevented 27 | . . . . . . . . . . . . . . . . . . . . . . . 3 13 . 11 Kills | -11 -10 -10 -9 -9 -9 -8 -8 -7 -7 -7 -7 -7 -6 -6 -6 -6 -6 -6 -6 -5 -5 -5 -5 -5 -5 -4 ------- Run | Jun Mat Min Mat Min Exi Min Mat Fac Low Low Zio Dee Pro Fac Ext Cet Arc Hub Gar Fac Was Fac Upp Upp War Pro Combat Hostiles Destroyed 233 | . 11 19 24 3 2 13 29 14 2 7 . 12 . 1 13 3 4 13 19 19 . 4 7 8 . 6 Guns 59 | . 11 3 19 . 2 4 9 7 . 4 . . . . . . . . . . . . . . . . Cannons 69 | . . . . . . . 9 2 . . . 2 . 1 10 . 4 13 8 13 . 4 2 . . 1 AOE 87 | . . 16 5 3 . 9 10 4 2 2 . 5 . . 3 . . . 11 6 . . 5 6 . . Classes Destroyed 21 | . 3 3 2 1 2 2 2 1 1 . . 3 . . . . . . . 1 . . . . . . Worker 6 | . . . . . . 1 4 . . . . . . 1 . . . . . . . . . . . . Builder 7 | . . . . 1 . . 4 . . . . . . . . . . 1 . 1 . . . . . . Tunneler 3 | . . 2 . . . 1 . . . . . . . . . . . . . . . . . . . . Hauler 3 | . . . 1 . . . 2 . . . . . . . . . . . . . . . . . . . Recycler 8 | . . 2 4 . . . 2 . . . . . . . . . . . . . . . . . . . Operator 3 | . . . . . . . 1 . . . . . . . 1 . . . . 1 . . . . . . Turret 1 | . . . . . 1 . . . . . . . . . . . . . . . . . . . . . Watcher 15 | . 3 . 2 . . . 2 2 . . . . . 1 2 . . 1 1 . . 1 . . . . Swarmer 53 | . 6 3 8 3 . 7 3 8 . . . . . . 2 . . . 5 3 . . 5 . . . Grunt 81 | . 5 . 10 . . 5 16 3 . 5 . . . . 3 . . 7 6 9 . 2 . 7 . 3 Brawler 3 | . . . . . . 1 . . . 1 . . . . . . . . . 1 . . . . . . Duelist 3 | . . . . . . . . . . . . . . . . . . . . 2 . . . 1 . . Sentry 35 | . . . 6 . . . 9 1 . . . . . . 8 . 4 2 . 2 . 2 . . . 1 Hunter 9 | . . . . . . . 1 1 . 1 . . . . . . . . 4 . . . . . . 2 Programmer 12 | . . . . . . . . 1 . . . . . 1 . . . 4 4 2 . . . . . . Cetus Guard 3 | . . . . . . . . . . . . . . . . 3 . . . . . . . . . . Zionite 8 | . . . . . 8 . . . . . . . . . . . . . . . . . . . . . Z-Light 6 | . . . . . . . . . . . . 6 . . . . . . . . . . . . . . Master Thief 4 | . . . . . . . . . 2 . . . . . . . . . . . . . 2 . . . Assembler 2 | . . . . . . . . . . . . 2 . . . . . . . . . . . . . . Assembled 17 | . . 16 . . 1 . . . . . . . . . . . . . . . . . . . . . Golem 5 | . . . . . . . . . . . . 5 . . . . . . . . . . . . . . Savage 1 | . . . . . . . . . . . . . . . . . . 1 . . . . . . . . Best Kill Streak 8 | . 4 4 5 4 4 8 7 5 2 3 . 4 . 2 5 2 1 3 5 5 . 5 5 5 . 5 Combat Bots Only 7 | . 3 4 5 3 1 7 6 5 2 3 . 4 . 1 4 2 1 3 5 5 . 4 5 5 . 5 Max Kills in Single Turn 5 | . 1 2 2 4 2 2 2 4 1 1 . 2 . 1 2 1 1 1 5 2 . 1 2 3 . 2 Gunslinging 1 | . . . . . . . 1 . . . . . . . . . . . . . . . . . . . Exploded 4 | . . 2 2 3 . 2 2 4 1 1 . 2 . . 2 . . . 4 2 . . 2 3 . . Melee . | . . . . . . . . . . . . . . . . . . . . . . . . . . . Uniques/NPCs Destroyed 4 | . . . . . 3 . . . . . . 1 . . . . . . . . . . . . . . 8R-AWN (-9/Exiles) EX-DEC (-9/Exiles) EX-HEX (-9/Exiles) Z-Imprinter (-7/Deep Caves) Combat | -11 -10 -10 -9 -9 -9 -8 -8 -7 -7 -7 -7 -7 -6 -6 -6 -6 -6 -6 -6 -5 -5 -5 -5 -5 -5 -4 -------- Run | Jun Mat Min Mat Min Exi Min Mat Fac Low Low Zio Dee Pro Fac Ext Cet Arc Hub Gar Fac Was Fac Upp Upp War Pro Damage Taken 17035 | . 561 775 580 20 1248 583 1370 722 227 412 . 2178 . . 676 205 458 1330 1278 813 . 406 216 242 . 2735 Core 2969 | . 69 147 89 8 95 103 285 70 57 39 . 511 . . 103 12 47 126 189 107 . 70 18 18 . 806 Absorbed by Shields 331 | . . . . . . . 123 . . . . . . . 46 147 . . 15 . . . . . . . Redirected to Shielding 279 | . . . . . . . . . . . . 279 . . . . . . . . . . . . . . Regen/Repaired (Parts) 11 | . . . . . . . . 11 . . . . . . . . . . . . . . . . . . Core Remaining (%) 38 | 100 . 13 . . . 26 48 . . . . . 3 . . . . . 43 . . . . . . . Volleys Fired 901 | . 38 44 70 1 112 28 108 38 6 20 . 84 1 15 49 19 18 48 80 48 6 27 10 9 . 22 Largest 2 | . 2 2 2 1 2 2 2 2 1 2 . 2 2 2 2 1 2 2 2 2 1 2 2 1 . 2 Hottest 165 | . 90 90 46 36 53 46 135 135 39 81 . 124 50 50 50 75 50 50 50 119 10 50 50 39 . 165 Shots Fired 1431 | . 76 54 137 1 192 50 196 71 6 33 . 102 2 28 57 19 36 89 97 82 6 41 14 12 . 30 Gun 699 | . 76 22 134 . 192 44 94 41 . 31 . 63 . . . . . . . . . . . . . 2 Cannon 591 | . . . . . . . 87 28 . . . 25 2 28 50 19 36 89 85 72 . 41 8 3 . 18 Launcher 95 | . . 32 3 1 . 6 15 2 6 2 . 1 . . . . . . 2 . . . 6 9 . 10 Special 46 | . . . . . . . . . . . . 13 . . 7 . . . 10 10 6 . . . . . Kinetic 511 | . 37 10 134 . 192 44 94 . . . . . . . . . . . . . . . . . . . Thermal 658 | . 37 . . . . . 87 69 . 31 . 5 2 28 50 3 36 89 85 64 . 41 8 3 . 20 Explosive 108 | . . 32 3 1 . 6 15 2 6 2 . 14 . . 7 . . . 10 10 . . . . . . Electromagnetic 101 | . 2 12 . . . . . . . . . 36 . . . 16 . . 2 8 . . 6 9 . 10 Phasic 47 | . . . . . . . . . . . . 47 . . . . . . . . . . . . . . Robot Hit Streak 54 | . 9 7 16 3 54 28 19 17 2 11 . 20 . 7 14 16 45 28 15 18 11 19 6 6 . 8 Robot Miss Streak 8 | . 2 4 3 . 8 2 5 3 2 2 . 2 . 1 2 2 . 2 1 2 . 1 2 . . 1 Penetration Max 2 | . . . . . 2 . . . . . . . . . . . . . . . . . . . . . Secondary Targets 10 | . 4 . 2 . . 1 1 1 . 1 . . . . . . . . . . . . . . . . Max Gunslinging Chain 1 | . 1 . 1 . . 1 1 1 . 1 . . . . . . . . . . . . . . . . Shots Hit Robots 864 | . 47 20 95 1 146 36 123 49 2 24 . 42 . 3 34 16 29 65 28 41 5 17 7 5 . 29 Core Hits 499 | . 20 42 48 4 32 26 85 24 4 12 . 47 . 2 17 1 10 20 26 34 . 8 10 16 . 11 Critical Kills 7 | . . . . . 5 . 2 . . . . . . . . . . . . . . . . . . . Critical Parts Destroyed 11 | . . . . . 11 . . . . . . . . . . . . . . . . . . . . . Critical Strikes 27 | . 1 . . . 16 . 2 1 . 1 . 3 . . . . . . 2 1 . . . . . . Burn 3 | . 1 . . . . . . 1 . 1 . . . . . . . . . . . . . . . . Meltdown 1 | . . . . . . . 1 . . . . . . . . . . . . . . . . . . . Destroy 17 | . . . . . 16 . 1 . . . . . . . . . . . . . . . . . . . Corrupt 1 | . . . . . . . . . . . . 1 . . . . . . . . . . . . . . Sever 4 | . . . . . . . . . . . . 1 . . . . . . 2 1 . . . . . . Impale 1 | . . . . . . . . . . . . 1 . . . . . . . . . . . . . . Melee Attacks 21 | . 1 . . . . . . . . . 12 1 . . . . . . . . . . . . . 7 Impact 13 | . 1 . . . . . . . . . 12 . . . . . . . . . . . . . . . Slashing . | . . . . . . . . . . . . . . . . . . . . . . . . . . . Piercing 8 | . . . . . . . . . . . . 1 . . . . . . . . . . . . . 7 Sneak Attacks . | . . . . . . . . . . . . . . . . . . . . . . . . . . . Combat Hostiles . | . . . . . . . . . . . . . . . . . . . . . . . . . . . Follow-up Attacks . | . . . . . . . . . . . . . . . . . . . . . . . . . . . Damage Inflicted 33965 | . 616 1257 1788 207 2218 1474 3504 1545 274 682 . 3224 . 255 2068 471 1418 3131 2982 3497 . 708 510 739 . 1397 Guns 7537 | . 603 156 1421 . 2200 545 1153 830 . 451 . 120 . . . . . . . . . . . . . 58 Cannons 13082 | . . . . . . . 1183 480 . . . 428 . 255 1579 471 1418 3131 1110 1583 . 700 222 . . 522 Explosions 12081 | . . 1093 360 207 . 929 1168 235 274 231 . 2295 . . 446 . . . 1634 1560 . . 288 739 . 622 Melee 265 | . . . . . . . . . . . . 70 . . . . . . . . . . . . . 195 Ramming 99 | . 13 8 7 . 18 . . . . . . . . . 2 . . . . 43 . 8 . . . . Kinetic 5647 | . 271 57 1421 . 2200 545 1153 . . . . . . . . . . . . . . . . . . . Thermal 13876 | . 314 . . . . . 1172 1310 . 451 . . . 255 1579 93 1418 3131 1110 1363 . 700 273 58 . 649 Explosive 10328 | . . 1093 360 207 . 929 1168 235 274 231 . 2295 . . 446 . . . 1634 1456 . . . . . . Electromagnetic 2838 | . 18 99 . . . . . . . . . 548 . . . 378 . . . 324 . . 237 681 . 553 Impact 11 | . . . . . . . 11 . . . . . . . . . . . . . . . . . . . Slashing 901 | . . . . . . . . . . . . 311 . . 41 . . . 238 311 . . . . . . Piercing 265 | . . . . . . . . . . . . 70 . . . . . . . . . . . . . 195 Highest Corruption 21 | . 1 1 . . . . . . . . . 1 . . . . . 1 19 . 20 20 21 21 21 21 Average Corruption 9 | . 1 1 . . . . . . . . . 1 . . . . . 1 8 . 12 20 20 21 21 21 Corruption Purged 3 | . . . . . . . . . . . . 2 . . . . . . 1 . . . . . . . Corruption Blocked . | . . . . . . . . . . . . . . . . . . . . . . . . . . . Effects 185 | . 8 13 . . . . . . . . . 1 . . . . . 3 39 . 12 26 28 30 4 21 Message Errors 48 | . 3 3 . . . . . . . . . 1 . . . . . 3 8 . 1 6 8 9 1 5 Matter Fused 50 | . 3 3 . . . . . . . . . . . . . . . . 14 . 3 4 8 6 2 7 Heat Flow Errors 23 | . 1 3 . . . . . . . . . . . . . . . . 6 . 1 3 4 3 1 1 Energy Discharges 24 | . 1 . . . . . . . . . . . . . . . . . 6 . 4 3 4 3 . 3 Parts Rejected 4 | . . . . . . . . . . . . . . . . . . . . . 3 . . . . 1 Parts Fused 3 | . . . . . . . . . . . . . . . . . . . . . . 2 . 1 . . Data Loss (minor) 13 | . . 3 . . . . . . . . . . . . . . . . 1 . . 2 4 3 . . Data Loss (major) 7 | . . 1 . . . . . . . . . . . . . . . . 3 . . 2 . 1 . . Misfires 4 | . . . . . . . . . . . . . . . . . . . . . . 1 . 3 . . Alerts 5 | . . . . . . . . . . . . . . . . . . . . . . 1 . 1 . 3 Weapon Failures 4 | . . . . . . . . . . . . . . . . . . . 1 . . 2 . . . 1 Overload Shots 11 | . . . . . . . . 11 . . . . . . . . . . . . . . . . . . Overflow Damage 952 | . . 45 . . . 40 4 35 48 . . 157 . 34 98 19 10 172 160 125 . . 2 3 . . Projectiles 554 | . . . . . . . . 34 . . . . . 34 54 19 10 172 112 119 . . . . . . Explosions 280 | . . 45 . . . 40 4 1 48 . . 39 . . 44 . . . 48 6 . . 2 3 . . Melee 118 | . . . . . . . . . . . . 118 . . . . . . . . . . . . . . Knockbacks 3 | . . . 1 . . . 1 . . . . . . . . . . . . 1 . . . . . . Impact 3 | . . . 1 . . . 1 . . . . . . . . . . . . 1 . . . . . . Kinetic . | . . . . . . . . . . . . . . . . . . . . . . . . . . . Secondary . | . . . . . . . . . . . . . . . . . . . . . . . . . . . Self-Inflicted Damage 729 | . . 291 3 . . 72 . . 207 . . . . . . . . . 24 26 . . 16 66 . 24 Shots 29 | . . 12 . . . 2 . . 5 . . . . . . . . . 1 1 . . 1 4 . 3 Rammed 13 | . 2 2 1 . 8 . . . . . . . . . . . . . . . . . . . . . Targets Rammed 19 | . 2 2 1 . 8 . . . . . . . . . 1 . . . . 3 . 2 . . . . Kicked 6 | . . . . . . . . . . . . . . . 1 . . . . 3 . 2 . . . . Crushed . | . . . . . . . . . . . . . . . . . . . . . . . . . . . Highest Temperature 417 | . 159 269 28 4 169 128 177 26 . 20 339 384 6 . 14 160 . 10 237 417 191 275 183 213 112 75 Average Temperature 66 | . 54 114 8 3 52 39 59 10 . 10 177 114 4 . 5 66 . 4 92 208 97 126 69 113 66 20 Received Heat Transfer 3512 | . 216 100 231 6 9 252 690 99 . 216 . 295 . . 195 4 81 444 113 111 . 90 . 54 . 306 Effects 6 | . . 1 . . . . . . . . . 2 . . . . . . . 1 . 2 . . . . Shutdowns 1 | . . . . . . . . . . . . . . . . . . . . 1 . . . . . . Energy Bleed 3 | . . 1 . . . . . . . . . 2 . . . . . . . . . . . . . . Interference 2 | . . . . . . . . . . . . . . . . . . . . . . 2 . . . . Siege Activations . | . . . . . . . . . . . . . . . . . . . . . . . . . . . Robots Corrupted 15 | . . . . . . . . . . . . 5 . . . 3 . . . . . . . 2 . 5 Combat Hostiles 15 | . . . . . . . . . . . . 5 . . . 3 . . . . . . . 2 . 5 Parts Fried 13 | . . . . . . . . . . . . . . . 1 2 . . . . . . 1 4 . 5 Impact Corruptions . | . . . . . . . . . . . . . . . . . . . . . . . . . . . Robots Melted 3 | . . . . . . . 1 1 . 1 . . . . . . . . . . . . . . . . Combat Hostiles 3 | . . . . . . . 1 1 . 1 . . . . . . . . . . . . . . . . Parts Melted 21 | . 3 . . . . . 3 7 . 1 . . . . 1 . 1 1 1 1 . 1 1 . . . Heat Transferred 11873 | . 999 . . . . . 1998 2080 . 925 . . . 125 837 50 775 1675 550 700 . 425 175 50 . 509 Parts Sabotaged . | . . . . . . . . . . . . . . . . . . . . . . . . . . . Parts Stolen 6 | . . . . . . . . . 1 3 . . . . . . . . . . . . 2 . . . Parts Stripped . | . . . . . . . . . . . . . . . . . . . . . . . . . . . Power Chain Reactions 6 | . . . . . . . . . . . . . . . . . . . . 1 . . 2 1 . 2 Missiles Intercepted . | . . . . . . . . . . . . . . . . . . . . . . . . . . . Alert | -11 -10 -10 -9 -9 -9 -8 -8 -7 -7 -7 -7 -7 -6 -6 -6 -6 -6 -6 -6 -5 -5 -5 -5 -5 -5 -4 ------- Run | Jun Mat Min Mat Min Exi Min Mat Fac Low Low Zio Dee Pro Fac Ext Cet Arc Hub Gar Fac Was Fac Upp Upp War Pro Peak Influence 1258 | . 245 176 646 454 . 366 884 365 . . . . . 60 427 613 405 389 1258 1076 351 294 . . . . Initial 660 | . . 23 20 251 . . 64 310 . . . . . . 21 211 245 141 272 660 336 245 . . . . Average 343 | . 73 49 374 291 . 151 522 158 . . . . . 8 245 477 323 263 613 888 343 240 . . . . Maximum Alert Level 4 | . 1 . 2 2 . 1 3 1 . . . . . . 2 2 2 1 4 3 1 1 . . . . Low Security (%) 37 | . 86 100 5 . . 76 13 77 . . . . . 100 33 . . 28 . . . 13 . . . . Level 1 35 | . 13 . 65 98 . 23 25 22 . . . . . . 61 42 69 71 37 . 100 86 . . . . Level 2 11 | . . . 28 1 . . 32 . . . . . . . 4 57 30 . 25 7 . . . . . . Level 3 14 | . . . . . . . 28 . . . . . . . . . . . 28 92 . . . . . . Level 4 . | . . . . . . . . . . . . . . . . . . . 8 . . . . . . . Level 5 . | . . . . . . . . . . . . . . . . . . . . . . . . . . . High Security . | . . . . . . . . . . . . . . . . . . . . . . . . . . . Max Security . | . . . . . . . . . . . . . . . . . . . . . . . . . . . Squads Dispatched 32 | . 4 . 2 . . . 7 4 . . . . . 1 1 . . 7 . 6 . . . . . . Investigation 9 | . 3 . 2 . . . . 1 . . . . . . 1 . . 2 . . . . . . . . Extermination 6 | . . . . . . . . 1 . . . . . 1 . . . 3 . 1 . . . . . . Reinforcement 9 | . 1 . . . . . 5 2 . . . . . . . . . 1 . . . . . . . . Assault 4 | . . . . . . . 1 . . . . . . . . . . 1 . 2 . . . . . . Garrison 4 | . . . . . . . 1 . . . . . . . . . . . . 3 . . . . . . Intercept . | . . . . . . . . . . . . . . . . . . . . . . . . . . . Searches Triggered . | . . . . . . . . . . . . . . . . . . . . . . . . . . . Construction Impeded 3 | . . . . . . . 2 1 . . . . . . . . . . . . . . . . . . Haulers Reinforced . | . . . . . . . . . . . . . . . . . . . . . . . . . . . Active Scanning Responses . | . . . . . . . . . . . . . . . . . . . . . . . . . . . Cargo Convoy Interrupts . | . . . . . . . . . . . . . . . . . . . . . . . . . . . Stealth | -11 -10 -10 -9 -9 -9 -8 -8 -7 -7 -7 -7 -7 -6 -6 -6 -6 -6 -6 -6 -5 -5 -5 -5 -5 -5 -4 --------- Run | Jun Mat Min Mat Min Exi Min Mat Fac Low Low Zio Dee Pro Fac Ext Cet Arc Hub Gar Fac Was Fac Upp Upp War Pro Distress Signals 13 | . 1 . . . . . 4 . . . . . . . 5 2 . . . . . 1 . . . . Communications Jammed 64 | . . . . . . 1 . . . . . . . 11 46 3 . 3 . . . . . . . . Distress Signals 64 | . . . . . . 1 . . . . . . . 11 46 3 . 3 . . . . . . . . Times Spotted 363 | . 15 24 33 7 10 12 56 20 3 10 . 21 . 4 26 11 5 19 23 29 5 6 11 5 . 8 Peak Tracking Total 9 | . 4 3 6 4 9 7 7 5 2 4 . 3 . 2 4 5 1 3 5 6 2 5 5 5 . 4 Tactical Retreats 15 | . . 2 . . 3 . 2 . . . . . . . 4 . . . . 2 . 1 . . . 1 Traps | -11 -10 -10 -9 -9 -9 -8 -8 -7 -7 -7 -7 -7 -6 -6 -6 -6 -6 -6 -6 -5 -5 -5 -5 -5 -5 -4 ------- Run | Jun Mat Min Mat Min Exi Min Mat Fac Low Low Zio Dee Pro Fac Ext Cet Arc Hub Gar Fac Was Fac Upp Upp War Pro Traps Triggered 10 | . 2 . . . . . . 3 . . . 2 . . . . . . 1 2 . . . . . . Indirectly . | . . . . . . . . . . . . . . . . . . . . . . . . . . . Trap Hack Attempts . | . . . . . . . . . . . . . . . . . . . . . . . . . . . Triggered . | . . . . . . . . . . . . . . . . . . . . . . . . . . . Disarmed . | . . . . . . . . . . . . . . . . . . . . . . . . . . . Reprogrammed . | . . . . . . . . . . . . . . . . . . . . . . . . . . . Reused 2 | . . . . . . . . . . . . 2 . . . . . . . . . . . . . . Traps Extracted . | . . . . . . . . . . . . . . . . . . . . . . . . . . . Installed 30 | . . . 3 . . . . . . . . 27 . . . . . . . . . . . . . . Triggered . | . . . . . . . . . . . . . . . . . . . . . . . . . . . Fabricated Traps 40 | . . . . . . . . . . . . 40 . . . . . . . . . . . . . . Most Traps Carried 6 | . . 3 3 . . . . . . . . 6 . . . . . . . . . . . . . . Exploded 3 | . . . . . 3 . . . . . . . . . . . . . . . . . . . . . Machines | -11 -10 -10 -9 -9 -9 -8 -8 -7 -7 -7 -7 -7 -6 -6 -6 -6 -6 -6 -6 -5 -5 -5 -5 -5 -5 -4 ---------- Run | Jun Mat Min Mat Min Exi Min Mat Fac Low Low Zio Dee Pro Fac Ext Cet Arc Hub Gar Fac Was Fac Upp Upp War Pro Machines Disabled 47 | . . 2 4 . 6 2 3 . . . 2 1 . 3 3 1 2 2 10 5 . . . 1 . . Max in Single Turn 2 | . . 1 1 . 1 2 1 . . . 1 1 . 1 1 1 1 1 1 2 . . . 1 . . Garrison Access 7 | . . . . . . . 1 2 . . . . . . . . . 1 . 2 . 1 . . . . Garrison Relay 4 | . . . . . . . . . . . . . . . . . . . 4 . . . . . . . Phase Generator 1 | . . . . . . . . . . . . . . . . . . . 1 . . . . . . . Network Hub 4 | . . . . . . . . . . . . . . . . . . 4 . . . . . . . . Machines Repaired 1 | . . . . . . . . . . . . . . . . . . 1 . . . . . . . . Machines Sabotaged . | . . . . . . . . . . . . . . . . . . . . . . . . . . . Overloaded Fab Kills . | . . . . . . . . . . . . . . . . . . . . . . . . . . . Hacking | -11 -10 -10 -9 -9 -9 -8 -8 -7 -7 -7 -7 -7 -6 -6 -6 -6 -6 -6 -6 -5 -5 -5 -5 -5 -5 -4 --------- Run | Jun Mat Min Mat Min Exi Min Mat Fac Low Low Zio Dee Pro Fac Ext Cet Arc Hub Gar Fac Was Fac Upp Upp War Pro Machines Accessed 46 | . 4 . 6 . 2 . 7 10 . 1 . . . . 3 . . 5 3 3 . 2 . . . . Terminals 25 | . 2 . 4 . . . 4 3 . . . . . . 3 . . 4 3 1 . 1 . . . . Fabricators 2 | . . . . . . . . 2 . . . . . . . . . . . . . . . . . . Repair Stations 1 | . . . . . . . . 1 . . . . . . . . . . . . . . . . . . Recycling Units 4 | . 2 . 2 . . . . . . . . . . . . . . . . . . . . . . . Scanalyzers 4 | . . . . . . . 2 2 . . . . . . . . . . . . . . . . . . Garrison Access 7 | . . . . . . . 1 2 . . . . . . . . . 1 . 2 . 1 . . . . Total Hacks 125 | . 7 . 17 . 2 . 19 34 . 1 . . . . 11 . . 8 6 10 . 10 . . . . Successful 66 | . 4 . 8 . 2 . 8 23 . 1 . . . . 5 . . 5 2 3 . 5 . . . . Failed 58 | . 2 . 9 . . . 11 11 . . . . . . 6 . . 3 4 7 . 5 . . . . Catastrophic 8 | . . . 1 . . . . . . . . . . . . . . 2 2 2 . 1 . . . . Database Lockouts 1 | . 1 . . . . . . . . . . . . . . . . . . . . . . . . . Manual 76 | . 7 . 16 . 1 . 9 15 . . . . . . 11 . . 5 . 3 . 9 . . . . Terminals 82 | . 5 . 15 . . . 9 13 . . . . . . 11 . . 6 6 8 . 9 . . . . Fabricators 7 | . . . . . . . . 7 . . . . . . . . . . . . . . . . . . Repair Stations 5 | . . . . . . . . 5 . . . . . . . . . . . . . . . . . . Recycling Units 4 | . 2 . 2 . . . . . . . . . . . . . . . . . . . . . . . Scanalyzers 13 | . . . . . . . 8 5 . . . . . . . . . . . . . . . . . . Garrison Access 11 | . . . . . . . 2 4 . . . . . . . . . 2 . 2 . 1 . . . . Terminal Hacks 26 | . 2 . 5 . 2 . 2 6 . 1 . . . . 2 . . 1 2 1 . 2 . . . . Record 1 | . . . . . 1 . . . . . . . . . . . . . . . . . . . . . Robot Analysis 3 | . . . 3 . . . . . . . . . . . . . . . . . . . . . . . Prototype ID Bank 3 | . 1 . 2 . . . . . . . . . . . . . . . . . . . . . . . Open Door 1 | . . . . . . . . . . 1 . . . . . . . . . . . . . . . . Branch Access Points 2 | . . . . . . . . 1 . . . . . . . . . . . . . 1 . . . . Emergency Access Points 1 | . . . . . . . . . . . . . . . . . . . 1 . . . . . . . Terminal Index 2 | . . . . . . . . 1 . . . . . . . . . . . . . 1 . . . . Alert Level 3 | . . . . . . . 1 1 . . . . . . 1 . . . . . . . . . . . Unreport Threat 3 | . . . . . . . 1 . . . . . . . 1 . . . . 1 . . . . . . Locate Traps 4 | . 1 . . . . . . 2 . . . . . . . . . 1 . . . . . . . . Zone Layout 1 | . . . . . . . . 1 . . . . . . . . . . . . . . . . . . Garrison Registry 1 | . . . . . . . . . . . . . . . . . . . 1 . . . . . . . EX-Prototype ID Bank 1 | . . . . . 1 . . . . . . . . . . . . . . . . . . . . . Fabricator Hacks 1 | . . . . . . . . 1 . . . . . . . . . . . . . . . . . . Build 1 | . . . . . . . . 1 . . . . . . . . . . . . . . . . . . Repair Station Hacks 4 | . . . . . . . . 4 . . . . . . . . . . . . . . . . . . Scan Component 2 | . . . . . . . . 2 . . . . . . . . . . . . . . . . . . Repair 2 | . . . . . . . . 2 . . . . . . . . . . . . . . . . . . Recycling Unit Hacks . | . . . . . . . . . . . . . . . . . . . . . . . . . . . Scanalyzer 7 | . . . . . . . 4 3 . . . . . . . . . . . . . . . . . . Insert Component 4 | . . . . . . . 2 2 . . . . . . . . . . . . . . . . . . Analyze 3 | . . . . . . . 2 1 . . . . . . . . . . . . . . . . . . Garrison Access Hacks 7 | . . . . . . . 1 2 . . . . . . . . . 1 . 2 . 1 . . . . Unlock Access 1 | . . . . . . . . . . . . . . . . . . 1 . . . . . . . . Seal Access 6 | . . . . . . . 1 2 . . . . . . . . . . . 2 . 1 . . . . Unauthorized Hacks 21 | . 2 . 3 . . . 1 7 . . . . . . 3 . . 3 . . . 2 . . . . Terminals 14 | . . . 1 . . . 1 4 . . . . . . 3 . . 3 . . . 2 . . . . Track 1 | . . . . . . . . 1 . . . . . . . . . . . . . . . . . . Botnet 8 | . . . 1 . . . 1 2 . . . . . . 2 . . 1 . . . 1 . . . . Operators 3 | . . . . . . . . 1 . . . . . . 1 . . . . . . 1 . . . . Sabotage 2 | . . . . . . . . . . . . . . . . . . 2 . . . . . . . . Fabricators 3 | . . . . . . . . 3 . . . . . . . . . . . . . . . . . . Report 1 | . . . . . . . . 1 . . . . . . . . . . . . . . . . . . Liberate 2 | . . . . . . . . 2 . . . . . . . . . . . . . . . . . . Repair Stations . | . . . . . . . . . . . . . . . . . . . . . . . . . . . Recycling Units 4 | . 2 . 2 . . . . . . . . . . . . . . . . . . . . . . . Tunnel 4 | . 2 . 2 . . . . . . . . . . . . . . . . . . . . . . . Scanalyzers . | . . . . . . . . . . . . . . . . . . . . . . . . . . . Garrison Access . | . . . . . . . . . . . . . . . . . . . . . . . . . . . Data Cores Recovered 2 | . . . . . . . . . . . . . . . 1 . . . . 1 . . . . . . Used 1 | . . . . . . . . . . . . . . . 1 . . . . . . . . . . . Hacking Detections 24 | . 1 . 4 . . . 6 6 . . . . . . 2 . . 2 1 1 . 1 . . . . Full Trace Events 2 | . . . . . . . . 1 . . . . . . 1 . . . . . . . . . . . Feedback Events . | . . . . . . . . . . . . . . . . . . . . . . . . . . . Feedback Blocked . | . . . . . . . . . . . . . . . . . . . . . . . . . . . Robot Schematics Acquired . | . . . . . . . . . . . . . . . . . . . . . . . . . . . Robots Built 2 | . . . . . . . . 2 . . . . . . . . . . . . . . . . . . Authchips . | . . . . . . . . . . . . . . . . . . . . . . . . . . . Time 49 | . . . . . . . . 49 . . . . . . . . . . . . . . . . . . Total Robot Build Rating 4 | . . . . . . . . 4 . . . . . . . . . . . . . . . . . . Part Schematics Acquired 2 | . . . . . . . 1 1 . . . . . . . . . . . . . . . . . . Parts Built . | . . . . . . . . . . . . . . . . . . . . . . . . . . . Authchips . | . . . . . . . . . . . . . . . . . . . . . . . . . . . Time . | . . . . . . . . . . . . . . . . . . . . . . . . . . . Total Part Build Rating . | . . . . . . . . . . . . . . . . . . . . . . . . . . . Parts Repaired 2 | . . . . . . . . 2 . . . . . . . . . . . . . . . . . . Time 222 | . . . . . . . . 222 . . . . . . . . . . . . . . . . . . Parts Recycled . | . . . . . . . . . . . . . . . . . . . . . . . . . . . Recycled Matter . | . . . . . . . . . . . . . . . . . . . . . . . . . . . Retrieved Matter . | . . . . . . . . . . . . . . . . . . . . . . . . . . . Retrieved Components . | . . . . . . . . . . . . . . . . . . . . . . . . . . . Parts Scanalyzed 3 | . . . . . . . 1 2 . . . . . . . . . . . . . . . . . . Part Schematics Acquired 2 | . . . . . . . 1 1 . . . . . . . . . . . . . . . . . . Parts Damaged 1 | . . . . . . . 1 . . . . . . . . . . . . . . . . . . . Bothacking | -11 -10 -10 -9 -9 -9 -8 -8 -7 -7 -7 -7 -7 -6 -6 -6 -6 -6 -6 -6 -5 -5 -5 -5 -5 -5 -4 ------------ Run | Jun Mat Min Mat Min Exi Min Mat Fac Low Low Zio Dee Pro Fac Ext Cet Arc Hub Gar Fac Was Fac Upp Upp War Pro Used RIF Installer 2 | . . . . . . . . . . . . . . . . . . . 2 . . . . . . . Zone Cloak 1 | . . . . . . . . . . . . . . . . . . . 1 . . . . . . . Robots Hacked 6 | . . . . . . . . . . . . . . . . . . . . . 6 . . . . . Non-combat . | . . . . . . . . . . . . . . . . . . . . . . . . . . . Combat 6 | . . . . . . . . . . . . . . . . . . . . . 6 . . . . . Robot Hacks Applied 6 | . . . . . . . . . . . . . . . . . . . . . 6 . . . . . ignore_targets 6 | . . . . . . . . . . . . . . . . . . . . . 6 . . . . . Relay Couplers Released 21 | . . . . . . . . . . . . . . . . . . 2 19 . . . . . . . Machine Destruction 21 | . . . . . . . . . . . . . . . . . . 2 19 . . . . . . . Attached 3 | . . . . . . . . . . . . . . . . . . . 3 . . . . . . . Fabnet Peak Effective % . | . . . . . . . . . . . . . . . . . . . . . . . . . . . Robots Rewired 25 | . . 1 . . . . . . . . . . . . 21 . . . 3 . . . . . . . Allies Hacked . | . . . . . . . . . . . . . . . . . . . . . . . . . . . Hacks Repelled . | . . . . . . . . . . . . . . . . . . . . . . . . . . . Allies | -11 -10 -10 -9 -9 -9 -8 -8 -7 -7 -7 -7 -7 -6 -6 -6 -6 -6 -6 -6 -5 -5 -5 -5 -5 -5 -4 -------- Run | Jun Mat Min Mat Min Exi Min Mat Fac Low Low Zio Dee Pro Fac Ext Cet Arc Hub Gar Fac Was Fac Upp Upp War Pro Total Allies 50 | . . 2 . 5 . . . 11 . . 3 . . . 24 . . . 5 . . . . . . . Largest Group 11 | . . 1 1 5 5 . . 6 . . 3 3 . . 11 11 5 4 3 3 . . . . . . Highest-Rated Group 478 | . . 34 31 82 82 . . 93 . . 95 95 . . 478 446 246 87 102 90 . . . . . . Highest-Rated Ally 159 | . . 34 31 31 31 . . 30 . . 39 39 . . 159 159 159 31 51 30 . . . . . . Total Orders 14 | . . . . . 4 . . . . . . . . . 3 4 2 . . 1 . . . . . . STAY 9 | . . . . . 4 . . . . . . . . . 1 2 1 . . 1 . . . . . . FOLLOW 5 | . . . . . . . . . . . . . . . 2 2 1 . . . . . . . . . Ally Attacks 322 | . . 3 17 13 16 . 17 18 . 4 . 6 . . 113 49 . 32 16 18 . . . . . . Total Damage 7271 | . . 166 189 136 192 . 910 247 . 164 . 172 . . 1950 1521 . 788 360 476 . . . . . . Kills 65 | . . 2 4 4 1 . 8 2 . 2 . 3 . . 13 11 . 5 4 6 . . . . . . Allies Corrupted 4 | . . . . . 1 . . 1 . . . 1 . . 1 . . . . . . . . . . . Allies Melted 2 | . . . . . . . . 1 . . . . . . . . . . 1 . . . . . . . Turrets Deployed 3 | . . . . . 1 . 1 . . 1 . . . . . . . . . . . . . . . . Intel | -11 -10 -10 -9 -9 -9 -8 -8 -7 -7 -7 -7 -7 -6 -6 -6 -6 -6 -6 -6 -5 -5 -5 -5 -5 -5 -4 ------- Run | Jun Mat Min Mat Min Exi Min Mat Fac Low Low Zio Dee Pro Fac Ext Cet Arc Hub Gar Fac Was Fac Upp Upp War Pro Robot Analysis Total 3 | . . . 3 . . . . . . . . . . . . . . . . . . . . . . . Derelict Logs Recovered 9 | . . 2 . 1 . . . . 2 2 1 . . . . . . . . . . . 1 . . . Drone Launches . | . . . . . . . . . . . . . . . . . . . . . . . . . . . Drone Recoveries . | . . . . . . . . . . . . . . . . . . . . . . . . . . . Exploration | -11 -10 -10 -9 -9 -9 -8 -8 -7 -7 -7 -7 -7 -6 -6 -6 -6 -6 -6 -6 -5 -5 -5 -5 -5 -5 -4 ------------- Run | Jun Mat Min Mat Min Exi Min Mat Fac Low Low Zio Dee Pro Fac Ext Cet Arc Hub Gar Fac Was Fac Upp Upp War Pro Turns Passed 35408 | . 1504 1387 1158 683 3484 751 2081 2206 1450 1407 1812 7235 868 499 1114 340 265 1007 1903 1556 312 546 751 587 75 427 Spaces Moved 16538 | 1 585 698 601 411 1425 401 1057 1228 899 783 1111 3304 400 166 375 140 62 396 564 677 153 238 365 279 39 180 Core 6 | . . . . . . . . . . . . . . . . . . . . . . . . . . 6 Treads 1408 | . 585 345 . . 478 . . . . . . . . . . . . . . . . . . . . . Legs 4422 | 1 . . . . . . . . . . . 393 400 166 375 140 62 396 564 677 153 238 365 279 39 174 Wheels 10702 | . . 353 601 411 947 401 1057 1228 899 783 1111 2911 . . . . . . . . . . . . . . Hover . | . . . . . . . . . . . . . . . . . . . . . . . . . . . Flight . | . . . . . . . . . . . . . . . . . . . . . . . . . . . Fastest Speed 100 | 120 160 110 110 150 150 150 145 145 160 160 145 145 210 210 210 210 210 210 210 195 195 195 195 189 195 100 Average Speed 175 | 120 227 175 140 150 206 150 146 156 160 160 155 161 210 210 210 210 210 210 210 195 195 195 195 195 195 190 Slowest Speed 320 | 120 240 240 150 150 320 150 150 160 160 160 160 210 210 210 210 210 210 210 210 195 195 195 195 260 195 270 Overloaded Moves . | . . . . . . . . . . . . . . . . . . . . . . . . . . . Propulsion Burnouts . | . . . . . . . . . . . . . . . . . . . . . . . . . . . Robots Hopped . | . . . . . . . . . . . . . . . . . . . . . . . . . . . Cave-ins Triggered 2 | . . . . . . . . . . . . . . . . . . . 1 . . . . . . 1 Exploration Rate (%) 60 | 2 93 98 50 96 91 92 74 37 81 94 85 93 65 6 66 63 72 41 69 22 89 9 56 56 9 30 Regions Visited 26 Branch Regions 17 Pre-discovered Areas 9 | . 2 1 2 . 1 . . . . 1 1 . . . . . . . . . . . 1 . . . Known Exits Taken 16 | . . . . . . . 1 1 1 1 1 1 1 1 1 1 1 1 . . . 1 1 1 1 . Unknown Exits Taken 7 | 1 1 1 1 1 1 1 . . . . . . . . . . . . . . . . . . . . Scrap Searched 19 | . . 1 . 1 . 1 . . 4 3 3 . 1 . . . . . . . . . 3 2 . . Spaces Dug 210 | . 1 46 . . . 9 17 5 16 . 2 18 2 6 43 . . 2 10 24 . 9 . . . . Terrain Destroyed 1215 | . 1 199 5 11 13 76 92 19 43 34 2 167 2 10 128 . 2 18 199 128 . 22 8 7 . 29 Melee 3 | . 1 . . . . . . . . . 2 . . . . . . . . . . . . . . . Projectile 225 | . . . . . 11 . 10 1 . . . 51 2 10 16 . 2 18 39 34 . 22 3 2 . 4 AOE 985 | . . 199 5 11 . 76 82 18 43 34 . 116 . . 112 . . . 160 94 . . 5 5 . 25 Terrain Rammed . | . . . . . . . . . . . . . . . . . . . . . . . . . . . Walls Destroyed . | . . . . . . . . . . . . . . . . . . . . . . . . . . . Machines Disabled . | . . . . . . . . . . . . . . . . . . . . . . . . . . . Actions | -11 -10 -10 -9 -9 -9 -8 -8 -7 -7 -7 -7 -7 -6 -6 -6 -6 -6 -6 -6 -5 -5 -5 -5 -5 -5 -4 --------- Run | Jun Mat Min Mat Min Exi Min Mat Fac Low Low Zio Dee Pro Fac Ext Cet Arc Hub Gar Fac Was Fac Upp Upp War Pro Total 21620 | . 680 807 800 477 1786 506 1418 1446 905 905 1178 5124 426 289 644 169 160 483 1185 830 165 276 389 312 38 222 Wait 3104 | . 18 38 48 63 157 68 152 127 . 92 12 1481 25 98 11 3 77 22 493 82 2 4 9 21 . 1 Move 16514 | . 585 697 600 410 1424 400 1056 1227 898 782 1110 3303 399 165 374 139 61 396 562 677 152 237 364 278 38 180 Hop . | . . . . . . . . . . . . . . . . . . . . . . . . . . . Pick Up 222 | . 16 7 37 1 26 1 27 12 1 4 10 49 . 3 2 4 . 5 6 5 . 1 2 3 . . Fast Attach 77 | . 6 2 5 . 8 1 12 4 . 1 10 15 . . 1 . . 2 6 1 3 . . . . . Attach 110 | . 4 10 5 1 14 2 16 8 . 2 5 26 . 1 . . . 2 4 4 . 1 . 1 . 4 Detach 64 | . 3 1 1 . 6 . 5 5 . . 4 20 . . 1 . . 2 9 1 . 1 1 . . 4 Swap 98 | . 2 1 3 . 8 6 10 4 . 1 2 26 1 4 1 1 3 3 9 4 2 2 3 . . 2 Drop 224 | . 6 2 27 1 23 . 32 5 . 3 13 89 . 3 1 3 1 3 4 5 . 1 . . . 2 Fire 901 | . 38 44 70 1 112 28 108 38 6 20 . 84 1 15 49 19 18 48 80 48 6 27 10 9 . 22 Melee 21 | . 1 . . . . . . . . . 12 1 . . . . . . . . . . . . . 7 Ram 2 | . . 1 1 . . . . . . . . . . . . . . . . . . . . . . . Kick 6 | . . . . . . . . . . . . . . . 1 . . . . 3 . 2 . . . . Crush 10 | . 1 1 . . 8 . . . . . . . . . . . . . . . . . . . . . Escape Stasis 21 | . . . . . . . . 16 . . . . . . . . . . 5 . . . . . . . Rewire 216 | . . 3 . . . . . . . . . 3 . . 203 . . . 7 . . . . . . . Trap 30 | . . . 3 . . . . . . . . 27 . . . . . . . . . . . . . . Miscellaneous . | . . . . . . . . . . . . . . . . . . . . . . . . . . . Route ------- -11/Junkyard -10/Materials (discovered 5 exits: *Mat x3 / [*Min x2]) -10/Mines (discovered 2 exits: *Mat x2) -9/Materials (discovered 2 exits: *Mat / [*Min]) -9/Mines (discovered 4 exits: *Mat x2 / *Exi / Zio) -9/Exiles (discovered 2 exits: [*Min x2]) -8/Mines (discovered 2 exits: *Mat x2) -8/Materials (discovered 3 exits: *Fac / *Sto x2) -7/Factory (discovered 3 exits: *Fac / *Low x2) -7/Lower Caves -7/Lower Caves (discovered 2 exits: *Fac / *Zio) -7/Zion (discovered 2 exits: *Dee / [*Pro]) -7/Deep Caves -6/Proximity Caves -6/Factory -6/Extension (discovered 2 exits: *Fac / *Cet) -6/Cetus (discovered 2 exits: *Fac / *Arc) -6/Archives (discovered 2 exits: *Hub x2) -6/Hub_04(d) (discovered 3 exits: *Fac x2 / Gar) -6/Garrison (discovered 3 exits: *Fac x3) -5/Factory -5/Waste -5/Factory (discovered 2 exits: *Upp x2) -5/Upper Caves -5/Upper Caves (discovered 2 exits: *Fac / *War) -5/Warlord -4/Proximity Caves History --------- Turn | Location | Event 1 | -11/Junkyard | Discovered new exit (range 0) 1 | -11/Junkyard | Entered Materials 40 | -10/Materials | Central database locked down 106 | -10/Materials | Discovered new exit (range 11) 276 | -10/Materials | Discovered new exit (range 6) 308 | -10/Materials | Build established: Mutant 787 | -10/Materials | Discovered new exit (range 9) 787 | -10/Materials | Discovered new exit (range 13) 1215 | -10/Materials | Discovered new exit (range 15) 1505 | -10/Materials | Entered Mines 1537 | -10/Mines | Discovered new exit (range 4) 1763 | -10/Mines | Assembled infested the area 1768 | -10/Mines | Assisted by a Guerilla fighting off Assembled 1827 | -10/Mines | Core integrity fell below 50% 1879 | -10/Mines | Lost 3 parts (1n2w) 2229 | -10/Mines | A weapon hastily lodged in a ceiling crevice suddenly fell to the ground 2356 | -10/Mines | Found a hidden stash of uninstalled traps 2447 | -10/Mines | Learned Materials trap positions 2539 | -10/Mines | Discovered new exit (range 9) 2587 | -10/Mines | Learned location of Zion (-7) 2631 | -10/Mines | Core integrity fell below 20% 2718 | -10/Mines | Received a Mining Laser from a helpful Derelict 2892 | -10/Mines | Entered Materials 2892 | -9/Materials | Accompanied by 1 ally 2892 | -9/Materials | Evolved 2 slots: Utility x2 2893 | -9/Materials | Loaded intel: 8 trap records 3597 | -9/Materials | Discovered new exit (range 16) 4023 | -9/Materials | Discovered new exit (range 15) 4050 | -9/Materials | Entered Mines 4113 | -9/Mines | Learned Materials trap positions 4160 | -9/Mines | Discovered new exit (range 7) 4340 | -9/Mines | Assisted by bots powering up and referring to "LRC-V3" 4376 | -9/Mines | Found a damaged Exp. Sensor Array with a note attached 4380 | -9/Mines | Found Prototype Device 4496 | -9/Mines | Deemed a non-threat by the Exiles lab entrance 4496 | -9/Mines | Discovered new exit (range 5) 4542 | -9/Mines | Discovered new exit (range 13) 4547 | -9/Mines | A Derelict revealed a hidden shortcut to a safe place 4733 | -9/Mines | Entered Exiles 4733 | -9/Exiles | Accompanied by 5 allies 4763 | -9/Exiles | Led the pair of lost Derelicts to a safe place 4771 | -9/Exiles | Met 8R-AWN 4795 | -9/Exiles | Met EX-HEX 4849 | -9/Exiles | Met EX-DEC 4936 | -9/Exiles | Discovered new exit (range 12) 5274 | -9/Exiles | Met EX-BIN 5292 | -9/Exiles | Aligned with FarCom system 5294 | -9/Exiles | Given EX-Vault access code 5330 | -9/Exiles | Opened EX-Vault 5339 | -9/Exiles | Found Cloak of Protection 5343 | -9/Exiles | Found Deploy-a-Sentry 5345 | -9/Exiles | Found Deploy-a-Sentry 5348 | -9/Exiles | Found Deploy-a-Sentry 5355 | -9/Exiles | Found PSU Rigger 5387 | -9/Exiles | Warned to stay clear of 0b10 Research branches 5533 | -9/Exiles | DAS Turret deployed 5791 | -9/Exiles | Attacked by the Exiles 6035 | -9/Exiles | Destroyed 8R-AWN 6051 | -9/Exiles | Found Prototype Device 6051 | -9/Exiles | Identified AS-neutralizer No. 17b 6064 | -9/Exiles | Lost 10 parts (2n6u2w) 6069 | -9/Exiles | Found Prototype Ballistic Gun 6069 | -9/Exiles | Identified 8R-AWN's Boregun 6098 | -9/Exiles | Found Prototype Processor 6280 | -9/Exiles | Build established: Scavenger-Mutant 6457 | -9/Exiles | Destroyed EX-DEC 6590 | -9/Exiles | Destroyed EX-HEX 6944 | -9/Exiles | Found Deploy-a-Sentry 7221 | -9/Exiles | Discovered new exit (range 14) 7739 | -9/Exiles | Found Prototype Device 7739 | -9/Exiles | Identified System Purifier 8083 | -9/Exiles | Build established: Mutant 8190 | -9/Exiles | Identified Exp. Sensor Array 8217 | -9/Exiles | Stole three prototypes: Cloak of Protection, PSU Rigger, Deploy-a-Sentry 8217 | -9/Exiles | Entered Mines 8336 | -8/Mines | Core integrity fell below 50% 8479 | -8/Mines | Destroyed 7 combat bots 8502 | -8/Mines | Discovered new exit (range 10) 8805 | -8/Mines | Discovered new exit (range 5) 8968 | -8/Mines | Entered Materials 8968 | -8/Materials | Evolved 2 slots: Utility x2 8969 | -8/Materials | Loaded intel: 17 trap records 9053 | -8/Materials | Garrison activated, responded to threat 9440 | -8/Materials | Discovered new exit (range 12) 9548 | -8/Materials | Build established: Scavenger-Mutant 9576 | -8/Materials | DAS Turret deployed 9606 | -8/Materials | Identified exit to Storage 10446 | -8/Materials | Discovered new exit (range 6) 10775 | -8/Materials | Discovered exit to Storage (range 15) 10869 | -8/Materials | Build established: Hacker-Mutant 10968 | -8/Materials | First assault squad dispatched 11039 | -8/Materials | Core integrity fell below 50% 11048 | -8/Materials | Identified exit to Factory 11049 | -8/Materials | Entered Factory 11049 | -7/Factory | Evolved 2 slots: Utility x2 11066 | -7/Factory | Identified Exp. Targeting Computer 11226 | -7/Factory | Fabricated Y-45 Defender (x2) 11359 | -7/Factory | Build established: Scavenger-Mutant 11512 | -7/Factory | Identified exit to Lower Caves 12632 | -7/Factory | Discovered new exit (range 11) 12660 | -7/Factory | Identified exit to Factory 12814 | -7/Factory | Repaired Broken Adv. Transmission Jammer 12951 | -7/Factory | Repaired Broken Exp. Sensor Array 13255 | -7/Factory | Entered Lower Caves 13255 | -7/Lower Caves | Spotted 8N-XBW(f) 13256 | -7/Lower Caves | Encountered a Master Thief 13257 | -7/Lower Caves | Spotted 6G-AN6(f) 13257 | -7/Lower Caves | Destroyed 8N-XBW(f) 13258 | -7/Lower Caves | Encountered a Master Thief 13265 | -7/Lower Caves | Cloak of Protection stolen by Master Thief 13265 | -7/Lower Caves | Destroyed 6G-AN6(f) 14262 | -7/Lower Caves | Identified exit to Lower Caves 14705 | -7/Lower Caves | Entered another Lower Caves area 14824 | -7/Lower Caves | Discovered exit to Factory (range 11) 15011 | -7/Lower Caves | Learned Factory emergency access door positions 15356 | -7/Lower Caves | Lost 3 parts (3u) 15561 | -7/Lower Caves | Discovered new exit (range 15) 15562 | -7/Lower Caves | Spotted 08-OIW(f) 15562 | -7/Lower Caves | Spotted SA-32K(f) 15563 | -7/Lower Caves | Spotted 82-GON(f) 15564 | -7/Lower Caves | Encountered a Master Thief 15564 | -7/Lower Caves | Encountered a Master Thief 15564 | -7/Lower Caves | Encountered a Master Thief 15564 | -7/Lower Caves | Spotted 4L-7W7(f) 15565 | -7/Lower Caves | Encountered a Master Thief 15565 | -7/Lower Caves | Deploy-a-Sentry stolen by Master Thief 15565 | -7/Lower Caves | 8R-AWN's Boregun stolen by Master Thief 15567 | -7/Lower Caves | DAS Turret deployed 15568 | -7/Lower Caves | Exp. Sensor Array stolen by Master Thief 15570 | -7/Lower Caves | Allies destroyed 08-OIW(f) 15572 | -7/Lower Caves | Allies destroyed 82-GON(f) 15604 | -7/Lower Caves | Build established: Mutant 15913 | -7/Lower Caves | Build established: Scavenger-Skirmisher 15987 | -7/Lower Caves | Spotted B-75 Beast 16109 | -7/Lower Caves | Identified exit to Zion 16112 | -7/Lower Caves | Entered Zion 16141 | -7/Zion | Gained Derelict followers 16213 | -7/Zion | Discovered new exit (range 15) 16377 | -7/Zion | Learned Factory emergency access door positions 16732 | -7/Zion | Found Prototype Special Weapon 16732 | -7/Zion | Identified RU-N14's Throwing Claymores 16735 | -7/Zion | Found RU-N14's Throwing Claymores 16739 | -7/Zion | Found RU-N14's Throwing Claymores 16743 | -7/Zion | Found RU-N14's Throwing Claymores 16842 | -7/Zion | Found CR-A16's Pointy Stick 17047 | -7/Zion | Build established: Skirmisher 17056 | -7/Zion | Learned location of Armory (-3) 17143 | -7/Zion | Found Prototype Device 17143 | -7/Zion | Identified Bomb Factory No. 2 17273 | -7/Zion | Found Prototype Device 17273 | -7/Zion | Identified Mobile Refinery Mk. CCLXVII 17377 | -7/Zion | Found Prototype Processor 17377 | -7/Zion | Identified Spectral Analyzer 17381 | -7/Zion | Found Prototype Processor 17381 | -7/Zion | Identified Exp. Melee Analysis Suite 17386 | -7/Zion | Found Prototype Processor 17386 | -7/Zion | Identified Exp. Target Analyzer 17389 | -7/Zion | Found Prototype Processor 17389 | -7/Zion | Identified Exp. Core Analyzer 17402 | -7/Zion | Found Prototype Processor 17402 | -7/Zion | Identified Exp. Signal Interpreter 17414 | -7/Zion | Found Exp. Targeting Computer 17903 | -7/Zion | Discovered new exit (range 5) 17905 | -7/Zion | Saw the warning signs outside the Deep Caves entrance 17907 | -7/Zion | Identified exit to Deep Caves 17924 | -7/Zion | Entered Deep Caves 17924 | -7/Deep Caves | Accompanied by 3 allies 18473 | -7/Deep Caves | Build established: Mutant 20703 | -7/Deep Caves | Attacked by Z-Imprinter 20709 | -7/Deep Caves | Destroyed Z-Imprinter 21120 | -7/Deep Caves | Found Prototype Protection 21438 | -7/Deep Caves | Found Surveybot 24 Scanner 21441 | -7/Deep Caves | Found Surveybot 24 Chip 21610 | -7/Deep Caves | Z-Facility disabled 21986 | -7/Deep Caves | Found Prototype Protection 21986 | -7/Deep Caves | Identified Zio. Weapon Casing 22182 | -7/Deep Caves | Discovered new exit (range 6) 22598 | -7/Deep Caves | Found Prototype Protection 22615 | -7/Deep Caves | Found Prototype Protection 22632 | -7/Deep Caves | Found Zio. Weapon Casing 22966 | -7/Deep Caves | Identified Zio. Heavy Carapace (x3) 23801 | -7/Deep Caves | Spotted as-40612 23826 | -7/Deep Caves | Core integrity fell below 50% 23836 | -7/Deep Caves | Destroyed as-40612 23839 | -7/Deep Caves | Found GOLEM Unit 23891 | -7/Deep Caves | Spotted as-99468 23927 | -7/Deep Caves | Core integrity fell below 20% 23935 | -7/Deep Caves | Destroyed as-99468 23957 | -7/Deep Caves | Lost 4 parts (1n3u) 24283 | -7/Deep Caves | Triggered Deep Caves wall 24306 | -7/Deep Caves | Spotted AS-47131 24309 | -7/Deep Caves | Spotted AS-74223 24328 | -7/Deep Caves | Destroyed AS-47131 24338 | -7/Deep Caves | Destroyed AS-74223 24338 | -7/Deep Caves | Exposed GOLEM chamber 24397 | -7/Deep Caves | Found Modified TNC 24526 | -7/Deep Caves | Found GOLEM Unit 24531 | -7/Deep Caves | Found GOLEM Unit 24538 | -7/Deep Caves | Found GOLEM Unit 24543 | -7/Deep Caves | Found GOLEM Unit 24549 | -7/Deep Caves | Found GOLEM Unit 24722 | -7/Deep Caves | Identified exit to Proximity Caves 25159 | -7/Deep Caves | Entered Proximity Caves 25491 | -6/Proximity Caves | Build established: Skirmisher 25905 | -6/Proximity Caves | Discovered exit to Factory (range 21) 26027 | -6/Proximity Caves | Entered Factory 26027 | -6/Factory | Evolved 2 slots: Power x1, Utility x1 26443 | -6/Factory | Discovered new exit (range 23) 26524 | -6/Factory | Identified exit to Extension 26526 | -6/Factory | Entered Extension 26565 | -6/Extension | Build established: Golem 26690 | -6/Extension | Rescued a captive Derelict 26691 | -6/Extension | Rescued a captive Derelict 26755 | -6/Extension | Rescued A7 27156 | -6/Extension | Build established: Commander-Golem 27613 | -6/Extension | Discovered new exit (range 10) 27615 | -6/Extension | Discovered new exit (range 6) 27628 | -6/Extension | Identified exit to Cetus 27640 | -6/Extension | Entered Cetus 27640 | -6/Cetus | Accompanied by 11 allies (A7) 27645 | -6/Cetus | Acquired a Cetus Manufacturing Module code from A7 27672 | -6/Cetus | Spotted Cetus Guard 27672 | -6/Cetus | Spotted Cetus Guard 27676 | -6/Cetus | Spotted Cetus Guard 27678 | -6/Cetus | Allies destroyed Cetus Guard 27684 | -6/Cetus | Allies destroyed Cetus Guard 27684 | -6/Cetus | Spotted Cetus Guard 27687 | -6/Cetus | Destroyed Cetus Guard 27691 | -6/Cetus | Destroyed Cetus Guard 27791 | -6/Cetus | Escorted A7 to Cetus Mainframe 27808 | -6/Cetus | Discovered new exit (range 19) 27847 | -6/Cetus | Spotted Cetus Guard 27848 | -6/Cetus | Spotted Cetus Guard 27852 | -6/Cetus | Spotted Cetus Guard 27853 | -6/Cetus | Spotted Cetus Guard 27860 | -6/Cetus | Allies destroyed Cetus Guard 27860 | -6/Cetus | Allies destroyed Cetus Guard 27867 | -6/Cetus | Destroyed Cetus Guard 27869 | -6/Cetus | Allies destroyed Cetus Guard 27875 | -6/Cetus | Discovered new exit (range 20) 27895 | -6/Cetus | Met Revision 17 27975 | -6/Cetus | Identified exit to Archives 27980 | -6/Cetus | Entered Archives 27980 | -6/Archives | Accompanied by 5 allies (A7) 27985 | -6/Archives | Received a hacking code to weaken MAIN.C 28102 | -6/Archives | Discovered new exit (range 20) 28207 | -6/Archives | Discovered new exit (range 16) 28236 | -6/Archives | Identified exit to Hub_04(d) 28245 | -6/Archives | Entered Hub_04(d) 28245 | -6/Hub_04(d) | Accompanied by 4 allies 28322 | -6/Hub_04(d) | Spotted B-75 Beast 28341 | -6/Hub_04(d) | Allies destroyed B-75 Beast 28607 | -6/Hub_04(d) | Build established: Golem 28662 | -6/Hub_04(d) | Discovered new exit (range 15) 28708 | -6/Hub_04(d) | Identified exit to Factory 28867 | -6/Hub_04(d) | Discovered exit to Factory (range 10) 29131 | -6/Hub_04(d) | Network Hub disabled 29131 | -6/Hub_04(d) | Network Hub disabled 29131 | -6/Hub_04(d) | Network Hub disabled 29133 | -6/Hub_04(d) | Network Hub disabled 29252 | -6/Hub_04(d) | Identified exit to Garrison 29252 | -6/Hub_04(d) | Entered Garrison 29762 | -6/Garrison | Phase Generator disabled 29869 | -6/Garrison | Discovered exit to Factory (range 55) 29869 | -6/Garrison | Discovered exit to Factory (range 65) 29869 | -6/Garrison | Discovered exit to Factory (range 29) 30008 | -6/Garrison | Installed Relay Interface Framework 30140 | -6/Garrison | Triggered checkpoint 30177 | -6/Garrison | Garrison Relay disabled 30442 | -6/Garrison | Triggered checkpoint 30463 | -6/Garrison | Garrison Relay disabled 30481 | -6/Garrison | Build established: Mutant 30559 | -6/Garrison | Rescued a captive Derelict 30559 | -6/Garrison | Rescued a captive Derelict 30573 | -6/Garrison | Garrison Relay disabled 30580 | -6/Garrison | Triggered checkpoint 30634 | -6/Garrison | Crushed by falling debris 30635 | -6/Garrison | System corruption reached 10% 30694 | -6/Garrison | Triggered checkpoint 30710 | -6/Garrison | Core integrity fell below 50% 30851 | -6/Garrison | Expanded RIF knowledge: Zone Cloak 30880 | -6/Garrison | Spotted Executioner 30880 | -6/Garrison | Spotted Executioner 30935 | -6/Garrison | Build established: Golem 30954 | -6/Garrison | Triggered checkpoint 30990 | -6/Garrison | Triggered checkpoint 31010 | -6/Garrison | Garrison Relay disabled 31155 | -6/Garrison | Entered Factory 31155 | -5/Factory | Accompanied by 3 allies 31155 | -5/Factory | Evolved 2 slots: Propulsion x2 31420 | -5/Factory | Garrison activated, responded to threat 31755 | -5/Factory | First assault squad dispatched 32711 | -5/Factory | Sucked down chute 32711 | -5/Factory | Entered Waste 32726 | -5/Waste | EMP discharged 32729 | -5/Waste | Spotted C-40 Crusher 32745 | -5/Waste | Spotted C-40 Crusher 32785 | -5/Waste | Spotted C-40 Crusher 32787 | -5/Waste | Spotted C-40 Crusher 32787 | -5/Waste | Spotted C-40 Crusher 32822 | -5/Waste | Spotted C-40 Crusher 32826 | -5/Waste | EMP discharged 32826 | -5/Waste | System corruption reached 10% 32926 | -5/Waste | EMP discharged 32959 | -5/Waste | Discovered new exit (range 10) 33014 | -5/Waste | Identified exit to Factory 33023 | -5/Waste | Entered Factory 33258 | -5/Factory | Identified exit to Upper Caves 33569 | -5/Factory | Entered Upper Caves 33569 | -5/Upper Caves | Spotted 46-790(f) 33569 | -5/Upper Caves | Spotted 7N-0NY(f) 33569 | -5/Upper Caves | Spotted 40-43J(f) 33570 | -5/Upper Caves | Encountered a Master Thief 33570 | -5/Upper Caves | Encountered a Master Thief 33570 | -5/Upper Caves | Encountered a Master Thief 33574 | -5/Upper Caves | Modified TNC stolen by Master Thief 33574 | -5/Upper Caves | Cloak of Protection stolen by Master Thief 33575 | -5/Upper Caves | Destroyed 40-43J(f) 33578 | -5/Upper Caves | Destroyed 7N-0NY(f) 34293 | -5/Upper Caves | Discovered new exit (range 15) 34319 | -5/Upper Caves | Identified exit to Upper Caves 34320 | -5/Upper Caves | Entered another Upper Caves area 34378 | -5/Upper Caves | Discovered new exit (range 7) 34390 | -5/Upper Caves | Identified exit to Factory 34557 | -5/Upper Caves | Encountered a Warlord checkpoint 34855 | -5/Upper Caves | Discovered new exit (range 10) 34879 | -5/Upper Caves | Found Alien Artifact 34905 | -5/Upper Caves | Identified exit to Warlord 34907 | -5/Upper Caves | Entered Warlord 34966 | -5/Warlord | Discovered new exit (range 9) 34980 | -5/Warlord | Identified exit to Proximity Caves 34982 | -5/Warlord | Entered Proximity Caves 35214 | -4/Proximity Caves | Attracted the attention of an 0b10 checkpoint 35309 | -4/Proximity Caves | Spotted B-86 Titan 35367 | -4/Proximity Caves | Core integrity fell below 50% 35382 | -4/Proximity Caves | Crushed by falling debris 35383 | -4/Proximity Caves | Core integrity fell below 20% 35409 | -4/Proximity Caves | Destroyed by B-86 Titan with Matter Neutralizer Last Messages --------------- 35384_ System corrupted: Energy discharge (-254). 35385_ Penetrated by Slug. 35385_ Phase Cannon destroyed. 35387_ Discarded Asb. Flux Generator. 35387_ Dropped Huge Storage Unit. 35388_ Dropped Adv. Variable Charge Gun. 35388_ Discarded Asb. Nanovents. 35389_ Discarded Asb. Biocell Array. 35390_ B-86 Titan activates siege mode. 35391_ Acquired 7 matter. 35393_ The unstable cave ceiling collapses. 35393_ Exp. Sensor Array crushed. 35394_ Penetrated by Slug. 35396_ The unstable cave ceiling collapses. 35396_ Huge Storage Unit crushed. 35399_ Knocked back. 35400_ The unstable cave ceiling collapses. 35400_ Imp. Propulsion Shielding crushed. 35404_ Knocked back. 35404_ Slug penetrates Earth. Map ----- +----------------------------------------------------+ | ?????????????????????????????????????????????????? | | ?????????????????????????????????????????????????? | | ?????????????????????????????????????????????????? | | ?????????????????????????????????????????????????? | | ?????????????????????????????????????????????????? | | ?????????????????????????????????????????????????? | | ?????????????????????????????????????????????????? | | ?????????????????????????????????????????????????? | | ?????????????????????????????????????????????????? | | ?????????????????????????????????????????????????? | | ?????????????????????? ?????????????????????????? | | ?????????????????????# ?????????????????????????? | | ?????????????????????# ##???????????????????????? | | ????????????????????## ##??????????????????????? | | ???????????????????## ##?????????????????????? | | ???????????????????# ??????????????????????? | | ????????????????#### ??????????????????????? | | ????????????????#;# #####??????????????????? | | ?????????????????# #??????????????????? | | ?????????????????# #??????????????????? | | ?????????????????? ####???????????????? | | ??????????????????? #???????????????? | | ????????????????????# #???????????????? | | ???????????????????###|%% ##??????????????? | | ??????????????????##!;*%% % #??????????????? | | ??????????????????#!]#! !@BB #??????????????? | | ??????????????# ??#]!!# * BB #???????????????? | | ??????????????# ?#!!!%[ % #???????????????? | | ??????????????# # ! #??????????????? | | ??????????????? ;; %;; ;#?????????????? | | ?????????????# ## ;;# ##?????????????? | | ?????????????###??# ;## ##??????????????? | | ??????????????????# ## ####???????????????? | | ?????????????????## ## # ##??????????????????? | | ?????????????????# # #####???????????????????? | | ????????????????#; #???????????????????????? | | ??????????????##; ##???????????????????????? | | ???????######## ##????????????????????????? | | ???????# #"### #?????????????????????????? | | ??????## "# #?????????????????????????? | | ?????## ### ##?????????????????????????? | | ?????# ### #??????????????????????????? | | ?????# % ####???????????????????????? | | ?????## ##??????????????????????? | | ??????# #??????????????????????? | | ?????## #??????????????????????? | | ???### ##### #??????????????????????? | | ??##"" ##???## #??????????????????????? | | ?## "#?????# ##??????????????????????? | | ## ###????## #???????????????????????? | +----------------------------------------------------+ Best States ------------- Heat Dissipation 88 Energy Generation 45 Energy Capacity 1900 Matter Stores 300 Matter Capacity 300 Sight Range 24 Robot Scan Range 20 Terrain Scan Range 24 Terrain Scan Density 2010 Jamming Range 16 Cloak Strength 5 Additional Mass Support 12 Armor Coverage 1200 Resistance: KI 30 Resistance: EM 20 Weapon Shielding 100 Evasion (%) 40 Targeting Accuracy 16 Target Analysis 10 Recoil Reduction 2 Offensive Hacking 30 Relay Coupler Types 2 Relay Coupler Value 35 Item Schematics ----------------- Exp. Sensor Array | -8/Materials | Scanalyzed Exp. Targeting Computer | -7/Factory | Scanalyzed Robot Schematics ------------------ None Fabricated ------------ Y-45 Defender | x2 | -7/Factory | Preloaded Alien Tech Used ----------------- None Achievements -------------- None Challenges ------------ None Game ------ Seed ImpulseDrainedTriangulator Manual? 0 Play Time 02:27:05 Cumulative 357.6 hours Start 2023.05.24 @ 16:50:26 End 2023.05.24 @ 21:58:47 Sessions 3 Manual Loads 0 Difficulty Rogue Special Mode None Game No. 507 Rogue 480 Adventurer 4 Explorer 23 Win Type - Total 19 Types 14/0/2/2/1/0/0/0/0 Lore% 81 Gallery% 93 Achievement% 82 Wizard Run 0 Options --------- ASCII 0 Keyboard 1 Movement Numpad Keybinds 0 Fullscreen 1 Font 18/SmallcapsGlow Map View 76x50 Tactical HUD 1 Map Filters NONE Filters NONE Steam 1 RUN: b5e58518-6417-4e50-b6ba-c8c8b433f795